[Event "Early-Titled-Tuesday-Blitz-May-28-2024"]
[Site "Chess.com"]
[Date "2024.05.28"]
[Round "10"]
[White "FrenchPlayer2203"]
[Black "eightbyeightchess"]
[Result "1-0"]
[WhiteElo "2146"]
[BlackElo "2377"]
[TimeControl "180+1"]
[EndTime "9:55:49 PDT"]
[Termination "FrenchPlayer2203 won by resignation"]

1. d4 {[%clk 0:03:00.9]} 1... Nf6 {[%clk 0:02:55.3]} 2. c4 {[%clk 0:03:00.8]}
2... g6 {[%clk 0:02:51.4]} 3. Nc3 {[%clk 0:03:00.6]} 3... Bg7 {[%clk 0:02:49.8]}
4. e4 {[%clk 0:03:00.7]} 4... d6 {[%clk 0:02:48.7]} 5. Nf3 {[%clk 0:03:00.7]}
5... O-O {[%clk 0:02:48.1]} 6. Be2 {[%clk 0:03:00.2]} 6... Nc6 {[%clk
0:02:47.7]} 7. d5 {[%clk 0:02:57.4]} 7... Nb8 {[%clk 0:02:45]} 8. O-O {[%clk
0:02:55]} 8... Nbd7 {[%clk 0:02:25.9]} 9. Qc2 {[%clk 0:02:49]} 9... a5 {[%clk
0:02:17.9]} 10. Bg5 {[%clk 0:02:36.2]} 10... Nc5 {[%clk 0:02:02]} 11. Rab1
{[%clk 0:02:27.6]} 11... Bg4 {[%clk 0:01:32]} 12. b3 {[%clk 0:02:13.5]} 12...
Nfd7 {[%clk 0:01:15.1]} 13. Bd2 {[%clk 0:01:47.5]} 13... f5 {[%clk 0:01:06.2]}
14. h3 {[%clk 0:01:40.6]} 14... Bxf3 {[%clk 0:00:57.1]} 15. Bxf3 {[%clk
0:01:40.2]} 15... Ne5 {[%clk 0:00:57.8]} 16. Be2 {[%clk 0:01:31.9]} 16... fxe4
{[%clk 0:00:55.7]} 17. Nxe4 {[%clk 0:01:30.1]} 17... Nxe4 {[%clk 0:00:42.6]} 18.
Qxe4 {[%clk 0:01:29.6]} 18... Qd7 {[%clk 0:00:43.5]} 19. f4 {[%clk 0:01:23.1]}
19... a4 {[%clk 0:00:41.6]} 20. fxe5 {[%clk 0:01:18.8]} 20... Bxe5 {[%clk
0:00:39.1]} 21. Bg4 {[%clk 0:01:16.6]} 1-0

[Event "Early-Titled-Tuesday-Blitz-May-28-2024"]
[Site "Chess.com"]
[Date "2024.05.28"]
[Round "10"]
[White "zurzan"]
[Black "Andrii_Prydun"]
[Result "0-1"]
[WhiteElo "2138"]
[BlackElo "2366"]
[TimeControl "180+1"]
[EndTime "9:56:06 PDT"]
[Termination "Andrii_Prydun won by resignation"]

1. c4 {[%clk 0:03:00.9]} 1... Nf6 {[%clk 0:03:00.9]} 2. g3 {[%clk 0:02:59.7]}
2... g6 {[%clk 0:03:01.5]} 3. Bg2 {[%clk 0:03:00]} 3... Bg7 {[%clk 0:03:02.4]}
4. Nc3 {[%clk 0:02:59.8]} 4... O-O {[%clk 0:03:03.3]} 5. Nf3 {[%clk 0:02:59.7]}
5... c6 {[%clk 0:03:04.2]} 6. O-O {[%clk 0:02:59.8]} 6... d5 {[%clk 0:03:05.1]}
7. cxd5 {[%clk 0:02:59.6]} 7... cxd5 {[%clk 0:03:06]} 8. d3 {[%clk 0:02:59.7]}
8... Nc6 {[%clk 0:03:06.9]} 9. Bd2 {[%clk 0:02:58.1]} 9... e5 {[%clk 0:03:07.8]}
10. e4 {[%clk 0:02:56]} 10... d4 {[%clk 0:03:07.1]} 11. Ne2 {[%clk 0:02:51.1]}
11... Qd5 {[%clk 0:03:06.6]} 12. b3 {[%clk 0:02:50.4]} 12... Qd6 {[%clk
0:03:05.7]} 13. a3 {[%clk 0:02:46.1]} 13... Be6 {[%clk 0:03:05]} 14. b4 {[%clk
0:02:46.1]} 14... Nd7 {[%clk 0:03:04.9]} 15. Ne1 {[%clk 0:02:43.4]} 15... a5
{[%clk 0:03:04.1]} 16. f4 {[%clk 0:02:42.7]} 16... f6 {[%clk 0:03:03.8]} 17. f5
{[%clk 0:02:42.1]} 17... Bf7 {[%clk 0:03:03.5]} 18. b5 {[%clk 0:02:39.4]} 18...
Ne7 {[%clk 0:02:58.7]} 19. a4 {[%clk 0:02:39.4]} 19... Rac8 {[%clk 0:02:21.4]}
20. Bh3 {[%clk 0:02:35.1]} 20... Rc7 {[%clk 0:02:20.2]} 21. fxg6 {[%clk
0:02:28.9]} 21... hxg6 {[%clk 0:02:19.3]} 22. Rc1 {[%clk 0:02:28]} 22... b6
{[%clk 0:02:18.8]} 23. Rxc7 {[%clk 0:02:26.8]} 23... Qxc7 {[%clk 0:02:19.7]} 24.
Nf3 {[%clk 0:02:12.9]} 24... Nc5 {[%clk 0:02:02.4]} 25. Qc2 {[%clk 0:02:08.9]}
25... Bb3 {[%clk 0:02:00.3]} 26. Qc1 {[%clk 0:02:05.3]} 26... Qd6 {[%clk
0:01:50.4]} 27. Nh4 {[%clk 0:01:53.6]} 27... Nxd3 {[%clk 0:01:46.5]} 28. Qb1
{[%clk 0:01:48.1]} 28... Nc5 {[%clk 0:01:45.9]} 29. Rc1 {[%clk 0:01:42.6]} 29...
Bxa4 {[%clk 0:01:42.6]} 30. Qa2+ {[%clk 0:01:33.4]} 30... Bb3 {[%clk 0:01:41.6]}
31. Qa3 {[%clk 0:01:29.3]} 31... Bf7 {[%clk 0:01:39]} 32. Bxa5 {[%clk
0:01:22.4]} 32... Ra8 {[%clk 0:01:38.1]} 33. Rd1 {[%clk 0:00:44.2]} 33... Rxa5
{[%clk 0:01:37]} 34. Qb4 {[%clk 0:00:44.5]} 34... Ra4 {[%clk 0:01:36.8]} 35. Qb2
{[%clk 0:00:43.7]} 35... Ra2 {[%clk 0:01:33.6]} 0-1

[Event "Early-Titled-Tuesday-Blitz-May-28-2024"]
[Site "Chess.com"]
[Date "2024.05.28"]
[Round "10"]
[White "Durarbayli"]
[Black "DominguezOnYoutube"]
[Result "1-0"]
[WhiteElo "2933"]
[BlackElo "2984"]
[TimeControl "180+1"]
[EndTime "9:56:07 PDT"]
[Termination "Durarbayli won by resignation"]

1. e4 {[%clk 0:03:00.9]} 1... e5 {[%clk 0:02:59.8]} 2. Nf3 {[%clk 0:03:01.2]}
2... Nc6 {[%clk 0:02:59.3]} 3. d4 {[%clk 0:03:01.5]} 3... exd4 {[%clk
0:02:58.9]} 4. Nxd4 {[%clk 0:03:02.4]} 4... Nf6 {[%clk 0:02:58.3]} 5. Nxc6
{[%clk 0:03:02.7]} 5... bxc6 {[%clk 0:02:58.2]} 6. e5 {[%clk 0:03:03.4]} 6...
Qe7 {[%clk 0:02:58.3]} 7. Qe2 {[%clk 0:03:04.1]} 7... Nd5 {[%clk 0:02:58.4]} 8.
h4 {[%clk 0:03:04.8]} 8... Qe6 {[%clk 0:02:55.2]} 9. Nd2 {[%clk 0:03:04.4]} 9...
a5 {[%clk 0:02:53.3]} 10. g3 {[%clk 0:03:01.9]} 10... Nb4 {[%clk 0:02:44.1]} 11.
Nf3 {[%clk 0:03:01.4]} 11... Ba6 {[%clk 0:02:31.2]} 12. c4 {[%clk 0:03:01.3]}
12... Qg6 {[%clk 0:02:28.1]} 13. Kd1 {[%clk 0:03:01.3]} 13... c5 {[%clk
0:02:25]} 14. a3 {[%clk 0:03:01.4]} 14... Nc6 {[%clk 0:02:19.2]} 15. h5 {[%clk
0:02:33.5]} 15... Qe6 {[%clk 0:02:18.8]} 16. Rh4 {[%clk 0:02:33.8]} 16... Be7
{[%clk 0:02:07.2]} 17. Bh3 {[%clk 0:02:26.3]} 17... f5 {[%clk 0:02:06.9]} 18.
exf6 {[%clk 0:02:20]} 18... Qxe2+ {[%clk 0:02:05.7]} 19. Kxe2 {[%clk 0:02:20.9]}
19... Bxf6 {[%clk 0:02:05.5]} 20. Re4+ {[%clk 0:02:19.8]} 20... Kd8 {[%clk
0:01:26.4]} 21. Bg5 {[%clk 0:02:01.5]} 21... Rb8 {[%clk 0:01:08.3]} 22. Rd1
{[%clk 0:01:39.1]} 22... Rxb2+ {[%clk 0:01:07.2]} 23. Kf1 {[%clk 0:01:39.8]}
23... Bc8 {[%clk 0:00:40.7]} 24. h6 {[%clk 0:01:30.1]} 24... d6 {[%clk
0:00:27.1]} 25. hxg7 {[%clk 0:01:30.4]} 25... Bxh3+ {[%clk 0:00:26]} 26. Kg1
{[%clk 0:01:31]} 26... Rg8 {[%clk 0:00:24.6]} 27. Bxf6+ {[%clk 0:01:31.6]} 27...
Kd7 {[%clk 0:00:22.7]} 28. Bxb2 {[%clk 0:01:28.7]} 1-0

[Event "Early-Titled-Tuesday-Blitz-May-28-2024"]
[Site "Chess.com"]
[Date "2024.05.28"]
[Round "10"]
[White "theoneandonlydaaevik"]
[Black "suyu28"]
[Result "1-0"]
[WhiteElo "2620"]
[BlackElo "2754"]
[TimeControl "180+1"]
[EndTime "9:56:12 PDT"]
[Termination "theoneandonlydaaevik won by resignation"]

1. Nf3 {[%clk 0:02:59.9]} 1... Nf6 {[%clk 0:02:57.2]} 2. g3 {[%clk 0:03:00]}
2... b5 {[%clk 0:02:56.8]} 3. Bg2 {[%clk 0:02:58.6]} 3... Bb7 {[%clk 0:02:57]}
4. O-O {[%clk 0:02:57.5]} 4... e6 {[%clk 0:02:57.4]} 5. d3 {[%clk 0:02:57.9]}
5... d5 {[%clk 0:02:54.6]} 6. c4 {[%clk 0:02:34.8]} 6... bxc4 {[%clk 0:02:42.2]}
7. dxc4 {[%clk 0:02:35.1]} 7... c5 {[%clk 0:02:42.4]} 8. Nc3 {[%clk 0:02:32.3]}
8... d4 {[%clk 0:02:41.1]} 9. Nb5 {[%clk 0:02:16.6]} 9... a6 {[%clk 0:02:30.2]}
10. Na3 {[%clk 0:02:16.5]} 10... Nbd7 {[%clk 0:02:21.9]} 11. Nc2 {[%clk
0:02:15.1]} 11... e5 {[%clk 0:02:19]} 12. Bg5 {[%clk 0:01:49.3]} 12... Be7
{[%clk 0:02:14]} 13. Re1 {[%clk 0:00:52.7]} 13... e4 {[%clk 0:01:40.1]} 14. Nd2
{[%clk 0:00:40]} 14... O-O {[%clk 0:01:37.7]} 15. b4 {[%clk 0:00:39.1]} 15... h6
{[%clk 0:01:36.1]} 16. Bxf6 {[%clk 0:00:38.8]} 16... Nxf6 {[%clk 0:01:37]} 17.
bxc5 {[%clk 0:00:39.1]} 17... Bxc5 {[%clk 0:01:08.2]} 18. Nb3 {[%clk 0:00:39.1]}
18... Bb4 {[%clk 0:01:08.7]} 19. Nxb4 {[%clk 0:00:38.5]} 1-0

[Event "Early-Titled-Tuesday-Blitz-May-28-2024"]
[Site "Chess.com"]
[Date "2024.05.28"]
[Round "10"]
[White "ATM622"]
[Black "Peng_Li-Min"]
[Result "1/2-1/2"]
[WhiteElo "2579"]
[BlackElo "2753"]
[TimeControl "180+1"]
[EndTime "9:56:13 PDT"]
[Termination "Game drawn by repetition"]

1. d4 {[%clk 0:02:59.8]} 1... Nf6 {[%clk 0:02:59.9]} 2. c4 {[%clk 0:02:59.1]}
2... e5 {[%clk 0:02:59.7]} 3. dxe5 {[%clk 0:02:59.2]} 3... Ng4 {[%clk
0:03:00.1]} 4. Nf3 {[%clk 0:02:59.6]} 4... Bc5 {[%clk 0:02:59.3]} 5. e3 {[%clk
0:02:59.2]} 5... Nc6 {[%clk 0:02:59.1]} 6. Nc3 {[%clk 0:02:58.9]} 6... O-O
{[%clk 0:02:58.9]} 7. Be2 {[%clk 0:02:58.3]} 7... Re8 {[%clk 0:02:59.2]} 8. O-O
{[%clk 0:02:51.8]} 8... a5 {[%clk 0:02:59.4]} 9. Nd4 {[%clk 0:02:48.7]} 9...
Ngxe5 {[%clk 0:02:54.4]} 10. f4 {[%clk 0:02:46.2]} 10... Ng6 {[%clk 0:02:50.6]}
11. Kh1 {[%clk 0:02:34]} 11... d6 {[%clk 0:02:15.5]} 12. Nd5 {[%clk 0:02:32.1]}
12... Bxd4 {[%clk 0:02:10.9]} 13. exd4 {[%clk 0:02:32.1]} 13... Nxd4 {[%clk
0:02:11.8]} 14. Qxd4 {[%clk 0:02:27.1]} 14... Rxe2 {[%clk 0:02:11.4]} 15. f5
{[%clk 0:02:16.9]} 15... Bxf5 {[%clk 0:02:04]} 16. Bh6 {[%clk 0:02:16.6]} 16...
gxh6 {[%clk 0:01:54]} 17. Rxf5 {[%clk 0:02:14.4]} 17... Qh4 {[%clk 0:01:50.5]}
18. Nf6+ {[%clk 0:02:11.9]} 18... Kh8 {[%clk 0:01:48.8]} 19. Qc3 {[%clk
0:02:02.3]} 19... Ne5 {[%clk 0:01:46.1]} 20. c5 {[%clk 0:01:57.1]} 20... Qb4
{[%clk 0:01:16.5]} 21. Qh3 {[%clk 0:01:51.7]} 21... Re1+ {[%clk 0:01:01]} 22.
Rf1 {[%clk 0:01:51.5]} 22... Rxa1 {[%clk 0:01:01.5]} 23. Rxa1 {[%clk 0:01:52.4]}
23... Qxb2 {[%clk 0:01:02]} 24. Rf1 {[%clk 0:01:52.1]} 24... Qd2 {[%clk
0:00:44.9]} 25. Qf5 {[%clk 0:01:49.2]} 25... Qd3 {[%clk 0:00:29]} 26. Ne4 {[%clk
0:01:44.1]} 26... Rg8 {[%clk 0:00:07.4]} 27. Qf6+ {[%clk 0:01:35.4]} 27... Rg7
{[%clk 0:00:08]} 28. Qd8+ {[%clk 0:01:35.8]} 28... Rg8 {[%clk 0:00:08.7]} 29.
Qf6+ {[%clk 0:01:36.4]} 29... Rg7 {[%clk 0:00:09.4]} 30. Qd8+ {[%clk 0:01:37.1]}
30... Rg8 {[%clk 0:00:10.1]} 31. Qf6+ {[%clk 0:01:37.7]} 1/2-1/2

[Event "Early-Titled-Tuesday-Blitz-May-28-2024"]
[Site "Chess.com"]
[Date "2024.05.28"]
[Round "10"]
[White "GrotBchess"]
[Black "Budag-Leyla"]
[Result "0-1"]
[WhiteElo "2572"]
[BlackElo "2278"]
[TimeControl "180+1"]
[EndTime "9:56:16 PDT"]
[Termination "Budag-Leyla won by resignation"]

1. e4 {[%clk 0:02:57.8]} 1... e6 {[%clk 0:02:59.3]} 2. d4 {[%clk 0:02:55.8]}
2... d5 {[%clk 0:02:59.9]} 3. Nc3 {[%clk 0:02:56.3]} 3... Nf6 {[%clk 0:02:59.3]}
4. e5 {[%clk 0:02:56]} 4... Nfd7 {[%clk 0:02:59.6]} 5. Nce2 {[%clk 0:02:56.5]}
5... c5 {[%clk 0:03:00.1]} 6. c3 {[%clk 0:02:57]} 6... Nc6 {[%clk 0:03:00.7]} 7.
Nf3 {[%clk 0:02:56.2]} 7... Qb6 {[%clk 0:03:01.1]} 8. h4 {[%clk 0:02:54]} 8...
cxd4 {[%clk 0:03:01.4]} 9. cxd4 {[%clk 0:02:53.2]} 9... f6 {[%clk 0:03:01.8]}
10. exf6 {[%clk 0:02:51.7]} 10... Nxf6 {[%clk 0:03:02.4]} 11. a3 {[%clk
0:02:51.4]} 11... Bd6 {[%clk 0:03:02.3]} 12. Bf4 {[%clk 0:02:44.4]} 12... Bxf4
{[%clk 0:03:01.5]} 13. Nxf4 {[%clk 0:02:45.3]} 13... Qxb2 {[%clk 0:03:01.6]} 14.
Bd3 {[%clk 0:02:44.1]} 14... Qc3+ {[%clk 0:03:00.1]} 15. Kf1 {[%clk 0:02:42.8]}
15... O-O {[%clk 0:03:00.5]} 16. Rh3 {[%clk 0:02:32.6]} 16... e5 {[%clk
0:02:59.8]} 17. Ne2 {[%clk 0:02:29.8]} 17... Qa5 {[%clk 0:02:58.5]} 18. dxe5
{[%clk 0:02:12.8]} 18... Bxh3 {[%clk 0:02:58.3]} 19. exf6 {[%clk 0:02:12.9]}
19... Bg4 {[%clk 0:02:57.8]} 20. fxg7 {[%clk 0:02:11.2]} 20... Kxg7 {[%clk
0:02:58.2]} 21. Ng3 {[%clk 0:01:58.6]} 21... Bxf3 {[%clk 0:02:56.4]} 22. gxf3
{[%clk 0:01:58.5]} 22... d4 {[%clk 0:02:56.9]} 23. Be4 {[%clk 0:01:55.7]} 23...
Rad8 {[%clk 0:02:54.9]} 24. Qd3 {[%clk 0:01:53.3]} 24... Ne5 {[%clk 0:02:53.8]}
25. Qb3 {[%clk 0:01:43.5]} 25... Qb6 {[%clk 0:02:52.8]} 26. Qc2 {[%clk
0:01:38.5]} 26... d3 {[%clk 0:02:51.9]} 27. Qc3 {[%clk 0:01:36.4]} 27... Rde8
{[%clk 0:02:47.8]} 28. Nf5+ {[%clk 0:01:30.8]} 28... Kh8 {[%clk 0:02:46.9]} 29.
Bxd3 {[%clk 0:01:26.5]} 29... Qf6 {[%clk 0:02:46.7]} 30. Re1 {[%clk 0:01:11.1]}
30... Re6 {[%clk 0:02:39]} 31. Be4 {[%clk 0:01:04.6]} 31... Ng6 {[%clk
0:02:30.1]} 32. Qxf6+ {[%clk 0:01:01.4]} 32... Rexf6 {[%clk 0:02:30.6]} 33. h5
{[%clk 0:01:01.8]} 33... Nf4 {[%clk 0:02:31]} 34. h6 {[%clk 0:00:58.3]} 34...
Rg6 {[%clk 0:02:28.5]} 35. Rc1 {[%clk 0:00:46.1]} 35... Rfg8 {[%clk 0:02:28.5]}
36. Ng3 {[%clk 0:00:41.7]} 36... Rxh6 {[%clk 0:02:27.9]} 37. Rc7 {[%clk
0:00:40.2]} 37... Rd8 {[%clk 0:02:25.6]} 38. Ke1 {[%clk 0:00:30.4]} 38... Rhd6
{[%clk 0:02:25.8]} 39. Bc2 {[%clk 0:00:21.1]} 39... Rc6 {[%clk 0:02:20.4]} 40.
Rxc6 {[%clk 0:00:16.9]} 40... bxc6 {[%clk 0:02:20.6]} 41. Ne4 {[%clk 0:00:17.3]}
41... Kg7 {[%clk 0:02:19.6]} 42. Nc5 {[%clk 0:00:14.1]} 42... h5 {[%clk
0:02:18.1]} 43. Be4 {[%clk 0:00:14]} 43... h4 {[%clk 0:02:18.1]} 44. Bf5 {[%clk
0:00:11.7]} 44... Rd5 {[%clk 0:02:17.7]} 45. Ne6+ {[%clk 0:00:09.7]} 45... Nxe6
{[%clk 0:02:17.8]} 46. Bxe6 {[%clk 0:00:10.6]} 46... Re5+ {[%clk 0:02:18.4]} 47.
Kf1 {[%clk 0:00:09.6]} 47... Rxe6 {[%clk 0:02:19.3]} 0-1

[Event "Early-Titled-Tuesday-Blitz-May-28-2024"]
[Site "Chess.com"]
[Date "2024.05.28"]
[Round "10"]
[White "topce"]
[Black "SoCalJuniorChess"]
[Result "1-0"]
[WhiteElo "2411"]
[BlackElo "2245"]
[TimeControl "180+1"]
[EndTime "9:56:16 PDT"]
[Termination "topce won by resignation"]

1. e4 {[%clk 0:03:00.9]} 1... d5 {[%clk 0:02:59.6]} 2. exd5 {[%clk 0:03:00.3]}
2... Qxd5 {[%clk 0:03:00.5]} 3. d4 {[%clk 0:02:58.2]} 3... e5 {[%clk 0:02:59.7]}
4. Nf3 {[%clk 0:02:54.7]} 4... Bg4 {[%clk 0:02:58.2]} 5. Nc3 {[%clk 0:02:53.4]}
5... Bb4 {[%clk 0:02:52.2]} 6. dxe5 {[%clk 0:02:46.8]} 6... Bxc3+ {[%clk
0:02:45.9]} 7. bxc3 {[%clk 0:02:45.7]} 7... Bxf3 {[%clk 0:02:41.2]} 8. gxf3
{[%clk 0:02:35.8]} 8... Qxe5+ {[%clk 0:02:41.7]} 9. Qe2 {[%clk 0:02:35.4]} 9...
Nc6 {[%clk 0:02:40.6]} 10. Bf4 {[%clk 0:02:31.6]} 10... Qxe2+ {[%clk 0:02:37.3]}
11. Bxe2 {[%clk 0:02:32.5]} 11... O-O-O {[%clk 0:02:37.5]} 12. Rg1 {[%clk
0:02:23.7]} 12... g6 {[%clk 0:02:35.5]} 13. Rd1 {[%clk 0:02:04.3]} 13... Rxd1+
{[%clk 0:02:32.1]} 14. Kxd1 {[%clk 0:02:05.2]} 14... Nf6 {[%clk 0:02:31.5]} 15.
Kc1 {[%clk 0:01:54.3]} 15... Nd5 {[%clk 0:02:28.3]} 16. Bd2 {[%clk 0:01:53.7]}
16... Nb6 {[%clk 0:02:11.3]} 17. f4 {[%clk 0:01:46.1]} 17... Na5 {[%clk
0:02:05.3]} 18. f5 {[%clk 0:01:42.2]} 18... Nac4 {[%clk 0:02:03.3]} 19. Bh6
{[%clk 0:01:40.1]} 19... Re8 {[%clk 0:01:59.3]} 20. Bd3 {[%clk 0:01:37.9]} 20...
Ne5 {[%clk 0:01:54.5]} 21. Be2 {[%clk 0:01:30.6]} 21... Nd5 {[%clk 0:01:52.8]}
22. Bd2 {[%clk 0:01:27.9]} 22... c5 {[%clk 0:01:32.2]} 23. fxg6 {[%clk
0:01:13.1]} 23... hxg6 {[%clk 0:01:29.2]} 24. h4 {[%clk 0:01:08.3]} 24... Rh8
{[%clk 0:01:28.1]} 25. h5 {[%clk 0:01:01.4]} 25... gxh5 {[%clk 0:01:24.2]} 26.
Rg5 {[%clk 0:00:57.8]} 26... f6 {[%clk 0:01:24.5]} 27. Rxh5 {[%clk 0:00:53.2]}
27... Rxh5 {[%clk 0:01:23.9]} 28. Bxh5 {[%clk 0:00:54.1]} 28... Kd7 {[%clk
0:01:21.3]} 29. f4 {[%clk 0:00:49.5]} 29... Nc6 {[%clk 0:01:18.9]} 30. Bg4+
{[%clk 0:00:48.1]} 30... Kd6 {[%clk 0:01:18.2]} 31. c4 {[%clk 0:00:45.6]} 31...
Nb6 {[%clk 0:01:16.1]} 32. Bc3 {[%clk 0:00:44]} 32... Ke7 {[%clk 0:01:13.5]} 33.
Be2 {[%clk 0:00:41.2]} 33... Na5 {[%clk 0:01:13.8]} 34. Bxa5 {[%clk 0:00:39.8]}
1-0

[Event "Early-Titled-Tuesday-Blitz-May-28-2024"]
[Site "Chess.com"]
[Date "2024.05.28"]
[Round "10"]
[White "GianmarcoVaR"]
[Black "Blitz_Lover1"]
[Result "0-1"]
[WhiteElo "2700"]
[BlackElo "2567"]
[TimeControl "180+1"]
[EndTime "9:56:31 PDT"]
[Termination "Blitz_Lover1 won by resignation"]

1. e4 {[%clk 0:03:00.5]} 1... c5 {[%clk 0:03:00.6]} 2. Nf3 {[%clk 0:03:00.8]}
2... Nc6 {[%clk 0:03:01.1]} 3. d4 {[%clk 0:03:00.6]} 3... cxd4 {[%clk
0:03:00.6]} 4. Nxd4 {[%clk 0:03:01.5]} 4... Nf6 {[%clk 0:03:00.7]} 5. Nc3 {[%clk
0:03:00.7]} 5... d6 {[%clk 0:03:01.3]} 6. Bc4 {[%clk 0:03:00.5]} 6... Bd7 {[%clk
0:03:01]} 7. Bb3 {[%clk 0:02:42.6]} 7... e6 {[%clk 0:02:58.5]} 8. Be3 {[%clk
0:02:42.9]} 8... Na5 {[%clk 0:02:48.1]} 9. f4 {[%clk 0:02:33.4]} 9... Rc8 {[%clk
0:02:46]} 10. Qe2 {[%clk 0:02:06.1]} 10... Rxc3 {[%clk 0:02:29.1]} 11. bxc3
{[%clk 0:02:05.4]} 11... Nxe4 {[%clk 0:02:29.8]} 12. O-O {[%clk 0:01:51]} 12...
d5 {[%clk 0:02:21]} 13. f5 {[%clk 0:01:47.2]} 13... e5 {[%clk 0:02:02.6]} 14.
Nf3 {[%clk 0:01:46.2]} 14... Bd6 {[%clk 0:01:54.2]} 15. Bd4 {[%clk 0:00:46.6]}
15... Nxb3 {[%clk 0:01:45]} 16. Bxe5 {[%clk 0:00:38.1]} 16... Bc5+ {[%clk
0:01:37.1]} 17. Kh1 {[%clk 0:00:36.4]} 17... Nxa1 {[%clk 0:01:36.3]} 18. Bxg7
{[%clk 0:00:36.5]} 18... Rg8 {[%clk 0:01:32.9]} 19. c4 {[%clk 0:00:36.4]} 19...
Rxg7 {[%clk 0:01:17.7]} 20. cxd5 {[%clk 0:00:35.8]} 20... Rg4 {[%clk 0:01:09.6]}
21. Nd2 {[%clk 0:00:32.6]} 21... Qh4 {[%clk 0:01:01.4]} 22. Re1 {[%clk 0:00:33]}
22... Qxh2+ {[%clk 0:00:43.6]} 0-1

[Event "Early-Titled-Tuesday-Blitz-May-28-2024"]
[Site "Chess.com"]
[Date "2024.05.28"]
[Round "10"]
[White "Qvalda"]
[Black "lefonghua"]
[Result "0-1"]
[WhiteElo "2404"]
[BlackElo "2553"]
[TimeControl "180+1"]
[EndTime "9:56:31 PDT"]
[Termination "lefonghua won by checkmate"]

1. d4 {[%clk 0:03:00.9]} 1... Nf6 {[%clk 0:02:59.5]} 2. c4 {[%clk 0:02:56.1]}
2... c5 {[%clk 0:02:59.6]} 3. d5 {[%clk 0:02:54.2]} 3... e6 {[%clk 0:02:59.2]}
4. Nc3 {[%clk 0:02:53.9]} 4... exd5 {[%clk 0:02:57.3]} 5. cxd5 {[%clk
0:02:54.8]} 5... d6 {[%clk 0:02:57.2]} 6. Nf3 {[%clk 0:02:54.8]} 6... g6 {[%clk
0:02:57.8]} 7. h3 {[%clk 0:02:48.8]} 7... Bg7 {[%clk 0:02:57.8]} 8. Bf4 {[%clk
0:02:48.8]} 8... a6 {[%clk 0:02:57.8]} 9. a4 {[%clk 0:02:48.5]} 9... O-O {[%clk
0:02:58]} 10. e3 {[%clk 0:02:49.1]} 10... Qe7 {[%clk 0:02:57.4]} 11. Be2 {[%clk
0:02:48.2]} 11... Ne8 {[%clk 0:02:57.6]} 12. O-O {[%clk 0:02:47.6]} 12... Nd7
{[%clk 0:02:58]} 13. a5 {[%clk 0:02:46.3]} 13... Rb8 {[%clk 0:02:54.6]} 14. Nd2
{[%clk 0:02:45.5]} 14... Nc7 {[%clk 0:02:53.9]} 15. Qb3 {[%clk 0:02:26.5]} 15...
b5 {[%clk 0:02:45]} 16. axb6 {[%clk 0:02:26]} 16... Rxb6 {[%clk 0:02:45.1]} 17.
Qa2 {[%clk 0:02:23.6]} 17... Rb4 {[%clk 0:02:40.8]} 18. Nc4 {[%clk 0:02:13.6]}
18... Ne5 {[%clk 0:02:36.3]} 19. Na5 {[%clk 0:02:11.9]} 19... Bd7 {[%clk
0:02:32.3]} 20. Bg3 {[%clk 0:01:46.6]} 20... Rfb8 {[%clk 0:02:28.5]} 21. Rfb1
{[%clk 0:01:19.4]} 21... f5 {[%clk 0:02:22]} 22. Nc6 {[%clk 0:01:10.7]} 22...
Nxc6 {[%clk 0:02:18.4]} 23. dxc6+ {[%clk 0:01:08.3]} 23... Be6 {[%clk
0:02:18.9]} 24. Qa3 {[%clk 0:00:10.9]} 24... Rb3 {[%clk 0:02:17.6]} 25. Qa5
{[%clk 0:00:06.8]} 25... Bxc3 {[%clk 0:02:15.2]} 26. bxc3 {[%clk 0:00:06.9]}
26... Rxb1+ {[%clk 0:02:15.1]} 27. Rxb1 {[%clk 0:00:07.5]} 27... Rxb1+ {[%clk
0:02:15.6]} 28. Kh2 {[%clk 0:00:08.3]} 28... Bd5 {[%clk 0:02:08.4]} 29. c4
{[%clk 0:00:04.4]} 29... Bxc6 {[%clk 0:02:05.6]} 30. Bf4 {[%clk 0:00:02.6]}
30... Rb2 {[%clk 0:01:59.8]} 31. Bd1 {[%clk 0:00:01.1]} 31... Rxf2 {[%clk
0:01:57.7]} 32. Kg1 {[%clk 0:00:01.2]} 32... Rxg2+ {[%clk 0:01:57]} 33. Kf1
{[%clk 0:00:01.7]} 33... g5 {[%clk 0:01:47.3]} 34. e4 {[%clk 0:00:01]} 34...
Qxe4 {[%clk 0:01:42.2]} 35. Qxc7 {[%clk 0:00:00.9]} 35... Qxf4+ {[%clk
0:01:39.7]} 36. Ke1 {[%clk 0:00:01.2]} 36... Qf2# {[%clk 0:01:38.3]} 0-1